bitfinex/quotes_SOLUSD_20251207
["timestamp","ask_amount","ask_price","bid_price","bid_amount"]
[1765147686243,20.0884886,132.61,132.55,4.77962459]
[1765147686244,7.54101915,132.61,132.55,4.77962459]
[1765147686419,7.54101915,132.61,132.56,4.77962459]
[1765147686420,0.66,132.6,132.56,4.77962459]
[1765147686822,8.20158421,132.6,132.56,5.46962459]
[1765147687851,0.66,132.59,132.56,5.46962459]
[1765147688258,0.66,132.59,132.57,0.99999999]
[1765147689351,0.66,132.59,132.56,10.9544716]
[1765147691534,0.66,132.59,132.56,8.54373188]
[1765147692127,7.54158421,132.6,132.56,8.54373188]
[1765147692335,0.66,132.59,132.56,8.54373188]
[1765147696561,0.66,132.59,132.56,9.23373188]
[1765147698648,0.66,132.59,132.56,8.54373188]
[1765147698848,0.66,132.59,132.56,9.23373188]
[1765147699149,0.66,132.59,132.57,0.99999999]
[1765147700073,8.20227168,132.59,132.55,8.54430212]
[1765147700235,2.41073972,132.58,132.52,0.99999999]
[1765147700440,3.07073972,132.58,132.53,0.99999999]
[1765147700749,0.66,132.57,132.53,0.99999999]
[1765147701462,0.66,132.57,132.53,9.21531736]
[1765147701765,8.20325993,132.57,132.53,0.99999999]
[1765147702355,8.20325993,132.57,132.54,0.99999999]
[1765147702553,0.71,132.56,132.52,8.21561505]
[1765147702752,0.71,132.56,132.53,0.99999999]
[1765147703243,0.71,132.56,132.52,8.54561504]
[1765147703444,0.71,132.56,132.53,0.99999999]
[1765147703647,8.25417524,132.56,132.53,0.99999999]
[1765147703947,0.71,132.55,132.53,0.99999999]
[1765147706357,0.71,132.55,132.51,9.21640542]
[1765147706580,0.71,132.55,132.53,0.99999999]
[1765147709045,2.41073972,132.54,132.49,0.99999999]
[1765147709246,8.25444347,132.55,132.47,1.86999999]
[1765147709247,2.41073972,132.53,132.47,1.86999999]
[1765147709445,2.41073972,132.52,132.47,0.2]
[1765147709672,3.12073972,132.52,132.47,0.2]
[1765147709870,0.71,132.51,132.47,0.2]
[1765147710251,3.12073972,132.51,132.47,0.2]
[1765147710761,7.54773945,132.49,132.47,0.2]
[1765147711146,0.71,132.48,132.47,0.2]
[1765147713659,10.66904889,132.48,132.47,0.2]
[1765147714179,8.25830917,132.48,132.42,1.19999999]
[1765147714356,2.41073972,132.44,132.42,0.2]
[1765147714556,2.41073972,132.43,132.42,0.2]
[1765147714752,9.96189882,132.43,132.35,0.99999999]
[1765147715069,9.96189882,132.43,132.35,1.66999999]
[1765147715070,2.41073972,132.41,132.35,1.66999999]
[1765147715263,2.41073972,132.41,132.35,0.67]
[1765147715581,3.07073972,132.4,132.35,0.67]
[1765147716071,0.66,132.39,132.35,0.67]
[1765147716271,7.55401117,132.38,132.35,0.67]
[1765147717981,7.55401117,132.38,132.34,7.55623923]
[1765147718188,8.21401117,132.38,132.34,8.22623923]
[1765147718479,0.66,132.38,132.34,8.22623923]
[1765147719167,0.66,132.38,132.34,0.67]
[1765147720758,0.66,132.38,132.34,3.08073972]
[1765147721186,0.66,132.38,132.34,0.67]
[1765147721364,0.66,132.38,132.33,10.96749193]
[1765147721684,0.66,132.38,132.33,11.63749193]
[1765147722473,8.2142698,132.38,132.33,10.63749194]
[1765147722673,8.2142698,132.38,132.32,10.96809645]
[1765147722876,0.66,132.37,132.32,11.63809645]
[1765147723084,0.66,132.37,132.32,3.08073972]
[1765147724680,26.44303414,132.36,132.32,0.67]
[1765147725182,27.10303414,132.36,132.32,0.67]
[1765147725584,0.66,132.35,132.3,0.2]
[1765147725790,3.07073972,132.35,132.3,0.2]
[1765147726300,0.66,132.34,132.3,0.2]
[1765147726806,26.44902894,132.33,132.3,0.2]
[1765147727285,0.66,132.32,132.3,0.2]
[1765147728175,7.55783386,132.32,132.3,0.2]
[1765147728379,8.21783386,132.32,132.3,0.2]
[1765147728788,7.55783386,132.32,132.3,0.2]
[1765147728982,8.21783386,132.32,132.3,0.2]
[1765147731065,7.55783386,132.32,132.3,0.2]
[1765147731290,8.21783386,132.32,132.3,0.2]
[1765147733393,0.66,132.31,132.3,0.2]
[1765147734701,8.2180077,132.31,132.3,0.2]
[1765147736185,10.62874742,132.31,132.3,0.2]
[1765147736998,35.74755634,132.31,132.3,0.2]
[1765147738285,35.74755634,132.31,132.3,1e-08]
[1765147739000,19.43869234,132.31,132.3,1e-08]
[1765147740787,16.308864,132.27,132.23,0.2]
[1765147740988,8.38,132.26,132.23,0.2]
[1765147741185,9.04,132.26,132.23,0.2]
[1765147741383,9.04,132.26,132.23,0.89]
[1765147741585,8.38,132.26,132.23,0.2]
[1765147741792,16.308864,132.24,132.23,0.2]
[1765147742082,23.87087246,132.24,132.23,0.2]
[1765147743492,24.53087246,132.24,132.23,0.2]
[1765147744309,8.80994492,132.23,132.21,0.2]
[1765147744475,27.52954864,132.21,132.2,0.06856669]
[1765147744674,25.11880892,132.17,132.12,1.68999999]
[1765147744874,35.90954864,132.17,132.12,0.69]
[1765147745175,38.91028836,132.17,132.16,1e-08]
[1765147745492,16.308864,132.13,132.06,0.99999999]
[1765147745693,16.308864,132.09,132.06,1.68999999]
[1765147745897,8.38,132.12,132.07,3.10073972]
[1765147746204,7.56372437,132.21,132.16,0.99999999]
[1765147746405,27.28611844,132.24,132.19,0.99999999]
[1765147746588,27.28611844,132.24,132.2,0.69]
[1765147746789,7.56270923,132.23,132.2,0.69]
[1765147747103,7.56270923,132.23,132.2,1.68999999]
[1765147747582,7.56270923,132.23,132.21,0.69]
[1765147748089,16.308864,132.2,132.16,0.69]
[1765147748290,16.308864,132.2,132.12,0.69]
[1765147748291,2.41073972,132.17,132.12,0.69]
[1765147748595,10.79073972,132.16,132.12,0.69]
[1765147748790,10.79073972,132.16,132.08,4.79369006]
[1765147748791,3.79369007,132.15,132.08,4.79369006]
[1765147749096,8.97,132.16,132.09,11.3637754]
[1765147749300,8.97,132.16,132.1,1.68999999]
[1765147749493,8.38,132.16,132.1,1.68999999]
[1765147749694,8.38,132.16,132.11,0.69]
[1765147749893,12.76369007,132.16,132.11,0.69]
[1765147750091,7.56715853,132.15,132.11,0.69]
[1765147751312,7.56715853,132.15,132.11,1.68999999]
[1765147751807,7.56715853,132.15,132.12,0.69]
[1765147753881,36.54851555,132.15,132.12,0.69]
[1765147754891,37.13851555,132.15,132.1,1.68999999]
[1765147755087,37.13851555,132.15,132.11,0.69]
[1765147756512,10.0634607,132.14,132.11,0.69]
[1765147756717,26.9623247,132.14,132.09,0.69]
[1765147757010,26.9623247,132.14,132.1,0.69]
[1765147757615,26.3723247,132.14,132.1,0.69]
[1765147757820,26.9623247,132.14,132.1,0.69]
[1765147758115,26.48906379,132.13,132.1,0.69]
[1765147758500,37.14252449,132.13,132.09,0.69]
[1765147758900,8.4,132.12,132.09,0.69]
[1765147760200,7.5694497,132.11,132.09,0.69]
[1765147765704,27.08307395,132.11,132.06,1.71999999]
[1765147765902,27.08307395,132.11,132.07,0.72]
[1765147766497,53.45539865,132.11,132.07,0.72]
[1765147768117,53.45539865,132.11,132.06,0.72]
[1765147768803,23.8783137,132.11,132.07,11.06346069]
[1765147769118,10.0634607,132.19,132.13,0.99999999]
[1765147769322,16.308864,132.17,132.13,0.99999999]
[1765147769618,16.308864,132.17,132.14,0.72]
[1765147770518,7.56658595,132.16,132.14,0.72]
[1765147772949,26.48104712,132.17,132.14,1.71999999]
[1765147775310,7.56715853,132.15,132.14,0.99999999]
[1765147776020,7.56715853,132.15,132.14,1.71999999]
[1765147777297,26.48104712,132.17,132.14,1.71999999]
[1765147777501,15.965642,132.18,132.15,1.71999999]
[1765147777931,15.965642,132.18,132.16,0.72]
[1765147784831,15.965642,132.18,132.14,3.79175461]
[1765147785016,15.965642,132.18,132.16,0.72]
[1765147786329,15.965642,132.18,132.14,3.79175461]
[1765147786330,34.87924466,132.18,132.14,0.72]
[1765147786526,34.87924466,132.18,132.15,0.72]
[1765147787029,4.38175461,132.17,132.12,1.71999999]
[1765147787241,16.308864,132.14,132.1,0.72]
[1765147787420,8.4,132.13,132.1,0.72]
[1765147788440,15.96885684,132.13,132.1,0.72]
[1765147791323,8.4,132.13,132.1,13.0816077]
[1765147791522,8.4,132.13,132.11,0.99999999]
[1765147791773,7.56486874,132.19,132.14,0.99999999]
[1765147791921,15.96486874,132.19,132.14,4.7917546]
[1765147792244,16.308864,132.18,132.15,0.67]
[1765147792646,23.87466347,132.18,132.15,0.67]
[1765147793739,8.4,132.19,132.15,8.23676745]
[1765147794045,16.308864,132.18,132.15,8.23676745]
[1765147794249,16.308864,132.17,132.16,0.67]
[1765147794436,15.96492702,132.19,132.16,0.67]
[1765147794748,16.308864,132.17,132.16,0.67]
[1765147795536,15.96492702,132.19,132.16,0.67]
[1765147795743,15.96492702,132.19,132.16,1.66999999]
[1765147796134,15.96492702,132.19,132.17,0.67]
[1765147798436,15.96492702,132.19,132.16,1.66999999]
[1765147799350,34.87709889,132.19,132.17,0.67]
[1765147801065,34.87709889,132.19,132.16,0.99999999]
[1765147801358,34.87709889,132.19,132.16,1.64999999]
[1765147801724,34.87709889,132.19,132.16,0.99999999]
[1765147801958,15.96492702,132.19,132.17,0.65]
[1765147808548,8.4,132.19,132.18,0.99999999]
[1765147808863,7.56449349,132.2,132.18,0.99999999]
[1765147809065,7.56449349,132.2,132.19,0.65]
[1765147809964,7.56372437,132.21,132.19,0.65]
[1765147812949,7.56372437,132.21,132.2,0.99999999]
[1765147813336,7.56372437,132.21,132.2,1.64999999]
[1765147816452,7.56372437,132.21,132.2,0.99999999]
[1765147823870,7.56372437,132.21,132.19,0.99999999]
[1765147824173,7.56372437,132.21,132.19,1.66999999]
[1765147826474,7.56372437,132.21,132.19,0.99999999]
[1765147826660,7.56372437,132.21,132.2,0.67]
[1765147830985,7.56372437,132.21,132.19,1.66999999]
[1765147831166,7.56372437,132.21,132.2,0.99999999]
[1765147831368,7.56372437,132.21,132.2,1.66999999]
[1765147832670,7.56372437,132.21,132.2,0.99999999]
[1765147832861,7.56372437,132.21,132.2,1.66999999]
[1765147834081,7.56372437,132.21,132.2,0.67]
[1765147834276,7.56372437,132.21,132.2,1.66999999]
[1765147837267,7.56372437,132.21,132.2,0.67]
[1765147837759,7.56372437,132.21,132.2,1.66999999]
[1765147841083,7.56372437,132.21,132.2,0.67]
[1765147841266,8.38,132.22,132.2,1.66999999]
[1765147841673,8.38,132.22,132.21,0.67]
[1765147843296,3.02995871,132.26,132.21,8.23370098]
[1765147843601,7.56099155,132.26,132.23,0.99999999]
[1765147843975,7.56099155,132.26,132.24,0.67]
[1765147844798,24.688864,132.27,132.24,0.67]
[1765147845101,8.38,132.27,132.25,0.99999999]
[1765147845295,8.38,132.27,132.25,8.5612392]
[1765147845502,8.38,132.27,132.26,0.67]
[1765147847892,23.8689428,132.28,132.26,0.67]
[1765147848088,16.308864,132.28,132.26,0.67]
[1765147848486,16.308864,132.28,132.26,8.2307796]
[1765147848691,15.9386584,132.3,132.27,0.67]
[1765147849204,16.308864,132.28,132.27,0.67]
[1765147849500,15.9386584,132.3,132.27,0.67]
[1765147849680,32.2475224,132.3,132.27,0.67]
[1765147856390,15.9386584,132.3,132.27,1.66999999]
[1765147856803,15.9386584,132.3,132.28,0.68]
[1765147861511,8.38,132.3,132.28,1.67999999]
[1765147861710,23.86711116,132.31,132.28,1.67999999]
[1765147862008,23.86711116,132.31,132.29,0.68]
[1765147862513,0.1,132.32,132.3,0.99999999]
[1765147863033,0.1,132.32,132.31,0.68]
[1765147865413,0.1,132.32,132.31,1.67999999]
[1765147866503,0.1,132.32,132.31,11.66310628]
[1765147866814,0.1,132.32,132.31,1.67999999]
[1765147867521,0.1,132.32,132.31,9.23800769]
[1765147869391,0.1,132.32,132.31,1.67999999]
[1765147869596,0.1,132.32,132.31,0.68]
[1765147870414,0.1,132.32,132.3,0.99999999]
[1765147870605,7.65743651,132.32,132.29,0.68]
[1765147870804,26.9813991,132.32,132.27,0.68]
[1765147871109,26.9813991,132.32,132.25,9.98638544]
[1765147871110,20.20504351,132.31,132.25,1.67999999]
[1765147871513,0.59,132.3,132.26,0.99999999]
[1765147871713,2.42509859,132.28,132.24,0.68]
[1765147871904,8.38,132.27,132.23,0.99999999]
[1765147872105,8.97,132.27,132.23,0.99999999]
[1765147872305,0.59,132.26,132.23,1.67999999]
[1765147872507,0.59,132.26,132.23,0.99999999]
[1765147872821,7.56143667,132.25,132.23,0.99999999]
[1765147874200,7.56143667,132.25,132.22,1.67999999]
[1765147874814,7.56143667,132.25,132.22,0.99999999]
[1765147875014,7.56143667,132.25,132.22,1.67999999]
[1765147875325,7.56143667,132.25,132.23,0.68]
[1765147875526,7.56086496,132.26,132.23,0.68]
[1765147875827,8.15086496,132.26,132.23,0.68]
[1765147877626,8.15086496,132.26,132.23,1.67999999]
[1765147878017,8.15086496,132.26,132.23,0.68]
[1765147878698,8.15086496,132.26,132.22,0.99999999]
[1765147878904,8.15086496,132.26,132.22,1.67999999]
[1765147880531,7.56086496,132.26,132.22,1.67999999]
[1765147880729,8.15191048,132.25,132.22,1.67999999]
[1765147881107,7.56191048,132.25,132.22,1.67999999]
[1765147881308,7.56191048,132.25,132.21,4.78685955]
[1765147881621,7.56191048,132.25,132.22,1.66999999]
[1765147882908,7.56191048,132.25,132.23,0.67]
[1765147883119,7.56191048,132.25,132.22,1.66999999]
[1765147884232,7.56191048,132.25,132.2,0.67]
[1765147884233,13.18680448,132.24,132.2,0.67]
[1765147884529,8.38,132.23,132.2,0.67]
[1765147884729,8.97,132.23,132.2,0.67]
[1765147885113,16.53310492,132.23,132.2,0.67]
[1765147886123,16.53310492,132.23,132.19,0.67]
[1765147886324,16.53310492,132.23,132.2,0.67]
[1765147886632,16.53310492,132.23,132.2,1.66999999]
[1765147886830,15.94310492,132.23,132.2,1.66999999]
[1765147887332,15.94310492,132.23,132.19,0.99999999]
[1765147887515,16.53310492,132.23,132.19,0.67]
[1765147888510,20.31996448,132.23,132.19,0.67]
[1765147888716,8.15358145,132.22,132.19,0.67]
[1765147889217,8.15358145,132.22,132.18,0.99999999]
[1765147889540,0.59,132.21,132.18,1.66999999]
[1765147889732,8.15358145,132.22,132.18,1.66999999]
[1765147890039,8.15358145,132.22,132.18,0.99999999]
[1765147890340,8.15358145,132.22,132.19,0.67]
[1765147890543,11.94044101,132.22,132.18,1.66999999]
[1765147892232,0.59,132.21,132.18,1.66999999]
[1765147892434,0.59,132.21,132.18,0.67]
[1765147893131,3.78685956,132.2,132.14,9.23758761]
[1765147893333,8.80994492,132.16,132.11,1.66999999]
[1765147893539,8.38,132.15,132.11,0.67]
[1765147893837,8.38,132.15,132.1,0.99999999]
[1765147893838,12.75685956,132.15,132.09,1.66999999]
[1765147894026,0.59,132.14,132.09,1.66999999]
[1765147894229,4.37685956,132.14,132.1,0.99999999]
[1765147894417,4.37685956,132.14,132.1,1.66999999]
[1765147894939,8.15879471,132.13,132.1,0.67]
[1765147895351,7.56879471,132.13,132.1,0.67]
[1765147897738,8.15879471,132.13,132.1,0.67]
[1765147898143,7.56879471,132.13,132.1,0.67]
[1765147898327,8.15879471,132.13,132.1,0.67]
[1765147898850,7.56879471,132.13,132.1,0.67]
[1765147899819,0.59,132.12,132.07,8.57164901]
[1765147900023,20.09572356,132.1,132.05,0.87]
[1765147900234,3.78685956,132.09,132.05,0.87]
[1765147900413,4.37685956,132.09,132.05,0.2]
[1765147900617,0.59,132.08,132.05,0.2]
[1765147900833,3.78685956,132.06,132.05,0.2]
[1765147901036,20.09572356,132.06,132.05,0.2]
[1765147901341,20.09572356,132.06,132.03,0.2]
[1765147901342,8.80994492,132.05,132.03,0.2]
[1765147901519,36.47913106,132.04,132.03,0.2]
[1765147901836,36.47913106,132.04,132.02,0.2]
[1765147901837,8.80994492,132.02,132.0,1e-08]
[1765147902040,16.308864,131.98,131.95,0.2]
[1765147902336,16.308864,131.98,131.96,0.67]
[1765147902337,8.38,131.97,131.96,0.67]
[1765147903340,3.0357075,131.99,131.98,0.99999999]
[1765147903642,8.38,132.0,131.98,0.99999999]
[1765147903827,8.38,132.0,131.98,1.66999999]
[1765147904224,15.95628882,132.0,131.98,1.66999999]
[1765147904732,15.95628882,132.0,131.99,0.67]
[1765147906146,15.95628882,132.0,131.98,0.99999999]
[1765147906326,15.95628882,132.0,131.98,1.66999999]
[1765147906527,15.95628882,132.0,131.98,0.67]
[1765147907341,19.74314838,132.0,131.96,1.66999999]
[1765147907526,19.74314838,132.0,131.96,0.67]
[1765147907725,19.74314838,132.0,131.97,0.67]
[1765147908432,38.68254231,132.0,131.97,0.67]
[1765147910346,16.308864,132.02,131.98,0.99999999]
[1765147910525,23.88362127,132.02,131.98,12.36373324]
[1765147910725,23.88362127,132.02,131.99,0.67]
[1765147910925,8.38,132.04,132.01,4.78685955]
[1765147911129,3.78685956,132.07,132.04,0.99999999]
[1765147911130,15.95174225,132.07,132.04,0.99999999]
[1765147911348,15.95174225,132.07,132.02,4.45685956]
[1765147911545,15.95174225,132.07,132.06,0.99999999]
[1765147911727,8.38,132.07,132.06,0.99999999]
[1765147911929,8.38,132.07,132.06,1.66999999]
[1765147912949,15.95174225,132.07,132.06,1.66999999]
[1765147913744,34.88109789,132.07,132.04,1.66999999]
[1765147914242,34.88109789,132.07,132.05,0.67]
[1765147914739,35.07109789,132.07,132.04,0.99999999]
[1765147915148,34.88109789,132.07,132.04,0.99999999]
[1765147915859,38.66795745,132.07,132.05,0.99999999]
[1765147916233,35.07109789,132.07,132.05,0.99999999]
[1765147916436,38.85795745,132.07,132.04,0.99999999]
[1765147916634,38.85795745,132.07,132.05,0.99999999]
[1765147917658,38.66795745,132.07,132.05,0.99999999]
[1765147918751,34.88109789,132.07,132.05,0.99999999]
[1765147918949,34.88109789,132.07,132.04,0.99999999]
[1765147919540,34.88109789,132.07,132.05,1.70999999]
[1765147919955,34.88109789,132.07,132.05,0.99999999]
[1765147920361,15.95174225,132.07,132.05,0.99999999]
[1765147920661,15.95174225,132.07,132.05,1.70999999]
[1765147921049,15.95174225,132.07,132.06,0.71]
[1765147921347,8.38,132.07,132.06,1.70999999]
[1765147923655,15.95174225,132.07,132.05,0.71]
[1765147923863,15.95174225,132.07,132.06,0.99999999]
[1765147925255,15.95174225,132.07,132.04,1.70999999]
[1765147925457,15.95174225,132.07,132.06,0.99999999]
[1765147927051,8.80994492,132.06,132.01,1.70999999]
[1765147927244,3.78685956,132.04,132.01,0.71]
[1765147927444,12.16685956,132.03,132.01,0.71]
[1765147927661,12.16685956,132.03,132.0,1.70999999]
[1765147927960,12.16685956,132.03,132.0,0.99999999]
[1765147928260,3.78685956,132.02,132.01,0.99999999]
[1765147928743,12.16685956,132.03,132.01,1.70999999]
[1765147928938,8.38,132.03,132.01,0.99999999]
[1765147929145,8.38,132.03,132.02,1.70999999]
[1765147929344,8.38,132.03,132.02,0.71]
[1765147929862,15.9540362,132.03,132.02,0.71]
[1765147930058,15.9540362,132.03,132.01,0.99999999]
[1765147930256,15.9540362,132.03,132.02,0.71]
[1765147934365,15.9540362,132.03,132.02,1.70999999]
[1765147934565,15.9540362,132.03,132.02,0.71]
[1765147934768,15.9540362,132.03,132.02,1.70999999]
[1765147935648,15.9540362,132.03,132.02,0.99999999]
[1765147935851,15.9540362,132.03,132.01,0.99999999]
[1765147936063,15.9540362,132.03,132.01,0.71]
[1765147936364,15.9540362,132.03,132.02,0.71]
[1765147944549,15.9540362,132.03,132.02,1.70999999]
[1765147954267,15.9540362,132.03,131.97,0.68]
[1765147954268,16.308864,132.0,131.97,0.68]
[1765147954465,8.38,131.99,131.97,0.68]
[1765147954785,15.95686862,131.99,131.97,0.68]
[1765147955170,15.95686862,131.99,131.96,0.68]
[1765147963574,16.308864,131.97,131.96,0.68]
[1765147963975,51.20656147,131.99,131.96,0.68]
[1765147965594,53.82837264,131.99,131.95,0.88]
[1765147966198,8.99994492,131.98,131.95,0.88]
[1765147966490,8.80994492,131.98,131.95,0.88]
[1765147967196,8.99994492,131.98,131.95,0.2]
[1765147967401,8.99994492,131.98,131.95,0.88]
[1765147967575,7.76747973,131.97,131.95,0.2]
[1765147967770,8.80994492,131.95,131.94,0.2]
[1765147967984,11.24175609,131.95,131.9,0.68]
[1765147968179,11.24175609,131.91,131.86,0.68]
[1765147968395,11.24175609,131.91,131.85,0.2]
[1765147968396,8.4,131.9,131.85,0.2]
[1765147968597,8.4,131.9,131.86,0.68]
[1765147968897,11.02181117,131.9,131.86,0.68]
[1765147969097,0.19,131.89,131.85,0.88]
[1765147969294,8.80994492,131.87,131.85,0.2]
[1765147969494,35.95062009,131.86,131.85,0.2]
[1765147969803,43.53442109,131.86,131.85,1e-08]
[1765147970106,43.72442109,131.86,131.85,1e-08]
[1765147970276,27.41555709,131.86,131.85,1e-08]
[1765147970606,28.41555708,131.86,131.85,1e-08]
[1765147971104,103.41555708,131.86,131.85,1e-08]
[1765147971504,102.41555709,131.86,131.85,1e-08]
[1765147971672,27.41555709,131.86,131.85,1e-08]
[1765147971873,28.41555708,131.86,131.85,1e-08]
[1765147972874,103.41555708,131.86,131.85,1e-08]
[1765147974486,25.11880892,131.83,131.82,0.2]
[1765147974692,27.55062009,131.83,131.82,0.2]
[1765147974896,27.74062009,131.83,131.82,0.2]
[1765147975081,27.74062009,131.83,131.8,0.2]
[1765147975282,11.24175609,131.81,131.8,0.2]
[1765147975882,18.82843388,131.81,131.8,0.2]
[1765147976517,8.4,131.82,131.8,0.88]
[1765147977595,15.98632562,131.82,131.8,0.88]
[1765147978505,15.98632562,131.82,131.8,0.2]
[1765147978806,15.98632562,131.82,131.8,0.92]
[1765147980010,18.41813679,131.82,131.8,0.92]
[1765147980597,15.98632562,131.82,131.8,0.92]
[1765147980910,15.98632562,131.82,131.8,0.2]
[1765147981108,15.98632562,131.82,131.8,0.92]
[1765147981483,18.41813679,131.82,131.8,0.92]
[1765147981806,15.98632562,131.82,131.77,0.72]
[1765147982013,34.95158127,131.82,131.77,0.72]
[1765147983092,37.38339244,131.82,131.77,0.72]
[1765147983398,34.95158127,131.82,131.77,0.72]
[1765147985660,2.43181117,131.78,131.75,0.2]
[1765147985793,2.43181117,131.76,131.75,0.2]
[1765147985991,25.11880892,131.75,131.74,0.2]
[1765147986193,27.55062009,131.75,131.74,0.2]
[1765147986411,28.74062008,131.75,131.69,0.2]
[1765147986613,2.43181117,131.7,131.69,0.2]
[1765147986790,10.83181117,131.7,131.69,0.2]
[1765147986990,8.4,131.7,131.69,0.2]
[1765147987190,10.83181117,131.7,131.66,0.82]
[1765147987394,10.83181117,131.7,131.67,0.72]
[1765147987632,10.83181117,131.7,131.66,0.1]
[1765147987633,8.99994492,131.69,131.66,0.1]
[1765147987914,8.99994492,131.69,131.66,1e-08]
[1765147987915,27.55062009,131.67,131.66,1e-08]
[1765147988328,27.74062009,131.67,131.66,1e-08]
[1765147988488,27.55062009,131.67,131.66,1e-08]
[1765147988692,31.67258605,131.67,131.66,1e-08]
[1765147988896,31.86258605,131.67,131.66,1e-08]
[1765147989296,114.41636317,131.67,131.66,1e-08]
[1765147989529,113.41636318,131.67,131.66,1e-08]
[1765147989819,122.0111076,131.67,131.66,1e-08]
[1765147990120,6.55377713,131.62,131.58,0.72]
[1765147990295,6.55377713,131.6,131.57,0.72]
[1765147990497,23.80372205,131.61,131.57,0.72]
[1765147990699,16.308864,131.58,131.54,0.72]
[1765147990900,6.55377713,131.56,131.54,0.72]
[1765147991104,6.55377713,131.55,131.49,0.72]
[1765147991298,6.55377713,131.55,131.5,0.72]
[1765147991299,6.55377713,131.54,131.5,0.72]
[1765147991517,14.99377713,131.53,131.5,0.72]
[1765147991824,14.15718345,131.52,131.48,0.72]
[1765147992210,22.86264113,131.49,131.43,0.72]
[1765147992414,6.55377713,131.46,131.43,0.72]
[1765147992612,8.46,131.5,131.43,7.27377713]
[1765147992811,8.80994492,131.53,131.43,7.27377713]
[1765147992812,24.768864,131.53,131.46,6.55377713]
[1765147993111,16.0605431,131.57,131.5,6.55377713]
[1765147993308,8.46,131.57,131.51,6.55377713]
[1765147993500,32.36947531,131.57,131.52,0.72]
[1765147993813,7.59943906,131.59,131.53,6.55377713]
[1765147994116,14.15321619,131.59,131.52,8.32337417]
[1765147994311,14.15321619,131.59,131.53,0.72]
[1765147994512,7.59943906,131.59,131.53,7.27377713]
[1765147995117,7.59943906,131.59,131.54,0.72]
[1765147995302,7.59943906,131.59,131.54,7.27377713]
[1765147995709,7.59943906,131.59,131.55,0.72]
[1765147995925,7.59943906,131.59,131.55,7.27377713]
[1765147996128,7.59943906,131.59,131.55,0.72]
[1765147996428,7.59943906,131.59,131.56,0.72]
[1765147999927,16.05882684,131.6,131.56,0.72]
[1765148000119,29.15730455,131.63,131.57,10.14891275]
[1765148000306,7.59655113,131.64,131.58,10.14891275]
[1765148000509,16.07655113,131.64,131.59,10.14891275]
[1765148000818,32.38541513,131.64,131.58,10.14891275]
[1765148001229,32.38541513,131.64,131.59,10.86891275]
[1765148001613,32.38541513,131.64,131.6,0.72]
[1765148003009,42.53432788,131.64,131.6,0.72]
[1765148003315,34.05598357,131.61,131.55,10.14891275]
[1765148003520,18.95885767,131.59,131.55,0.72]
[1765148004113,10.14891275,131.58,131.55,0.72]
[1765148004729,10.14891275,131.58,131.53,0.72]
[1765148005522,17.93933034,131.58,131.53,0.72]
[1765148006137,7.60041759,131.58,131.53,0.72]
[1765148006334,17.74933034,131.58,131.53,0.72]
[1765148007033,7.60041759,131.58,131.53,0.72]
[1765148008831,7.60041759,131.58,131.53,10.86891275]
[1765148009031,7.60041759,131.58,131.54,10.14891275]
[1765148009236,7.59936813,131.59,131.55,10.14891275]
[1765148009542,16.0788889,131.6,131.55,10.86891275]
[1765148009730,8.48,131.6,131.56,10.86891275]
[1765148009932,7.59771632,131.62,131.57,10.14891275]
[1765148010138,7.59771632,131.62,131.57,10.86891275]
[1765148010318,7.59771632,131.62,131.58,0.72]
[1765148012431,7.59771632,131.62,131.58,10.86891275]
[1765148012929,7.59771632,131.62,131.59,0.72]
[1765148017753,7.59771632,131.62,131.6,0.72]
[1765148019057,7.59771632,131.62,131.59,0.72]
[1765148020163,7.59771632,131.62,131.57,7.60051683]
[1765148020464,7.59771632,131.62,131.58,0.72]
[1765148036886,7.59771632,131.62,131.58,8.31972144]
[1765148037319,7.59771632,131.62,131.59,0.67]
[1765148041881,100.11880892,131.59,131.5,0.67]